bitfinex-derivatives/quotes_BNBF0:USTF0_20250507
["timestamp","ask_amount","ask_price","bid_price","bid_amount"]
[1746636666657,1.31557331,601.26,599.05,3.03186194]
[1746636666957,1.00944429,601.25,599.05,3.03186194]
[1746636667458,1.00944429,601.24,599.05,3.03186194]
[1746636667858,1.00944429,601.23,599.05,3.03186194]
[1746636668058,1.31557331,601.23,599.05,3.03186194]
[1746636668358,0.30612902,601.22,599.05,3.03186194]
[1746636668659,1.31557331,601.21,599.05,3.03186194]
[1746636668960,0.30612902,601.2,599.05,3.03186194]
[1746636669259,1.31557331,601.2,599.05,3.03186194]
[1746636669456,0.30612902,601.19,599.05,3.03186194]
[1746636669758,1.00944429,601.18,599.05,3.03186194]
[1746636669959,1.31557331,601.18,599.05,3.03186194]
[1746636670160,1.31557331,601.17,599.05,3.03186194]
[1746636670561,1.31557331,601.16,599.05,3.03186194]
[1746636670764,0.3327012,601.14,599.05,3.03186194]
[1746636671158,1.31557331,601.13,599.05,3.03186194]
[1746636671361,0.3327178,601.11,599.05,3.03186194]
[1746636671760,0.30612902,601.1,599.05,3.03186194]
[1746636671956,1.00944429,601.09,599.05,3.03186194]
[1746636672457,1.2994455,601.08,599.05,3.03186194]
[1746636672663,1.00944429,601.07,599.05,3.03186194]
[1746636672862,0.30612902,601.06,599.05,3.03186194]
[1746636673162,1.00944429,601.05,599.05,3.03186194]
[1746636673462,0.30612902,601.04,599.05,3.03186194]
[1746636673662,0.33276762,601.02,599.05,3.03186194]
[1746636673962,1.00944429,601.01,599.05,3.03186194]
[1746636674262,1.00944429,601.0,599.05,3.03186194]
[1746636674462,0.33278423,600.99,599.05,3.03186194]
[1746636674663,1.00944429,600.98,599.05,3.03186194]
[1746636674863,0.33279531,600.97,599.05,3.03186194]
[1746636675158,1.00944429,600.96,599.05,3.03186194]
[1746636675362,0.33280638,600.95,599.05,3.03186194]
[1746636675557,1.31557331,600.94,599.05,3.03186194]
[1746636675763,1.34226175,600.93,599.05,3.03186194]
[1746636675963,0.63895202,600.92,599.05,3.03186194]
[1746636676161,0.33282854,600.91,599.05,3.03186194]
[1746636676359,1.00944429,600.9,599.05,3.03186194]
[1746636676565,0.33283962,600.89,599.05,3.03186194]
[1746636676767,0.63896864,600.89,599.05,3.03186194]
[1746636677064,1.31557331,600.88,599.05,3.03186194]
[1746636677264,1.00944429,600.87,599.05,3.03186194]
[1746636677465,1.31557331,600.87,599.05,3.03186194]
[1746636677764,0.30612902,600.86,599.05,3.03186194]
[1746636677965,1.00944429,600.85,599.05,3.03186194]
[1746636678466,0.30612902,600.84,599.05,3.03186194]
[1746636678666,1.00944429,600.83,599.05,3.03186194]
[1746636679166,1.00944429,600.82,599.05,3.03186194]
[1746636679563,1.31561384,600.81,599.05,3.03186194]
[1746636679869,1.31561384,600.8,599.05,3.03186194]
[1746636680268,0.30616955,600.79,599.05,3.03186194]
[1746636680564,1.00944429,600.78,599.05,3.03186194]
[1746636680868,0.30616955,600.77,599.05,3.03186194]
[1746636681069,1.00944429,600.76,599.05,3.03186194]
[1746636681368,0.30616955,600.75,599.05,3.03186194]
[1746636681569,1.60564043,600.75,599.05,3.03186194]
[1746636681865,0.30616955,600.74,599.05,3.03186194]
[1746636682368,1.00944429,600.73,599.05,3.03186194]
[1746636682568,1.00944429,600.72,599.05,3.03186194]
[1746636682764,1.31561384,600.72,599.05,3.03186194]
[1746636683067,1.31561384,600.71,599.05,3.03186194]
[1746636683265,1.31561384,600.7,599.05,3.03186194]
[1746636683469,1.00944429,600.69,599.05,3.03186194]
[1746636683671,1.00944429,600.68,599.05,3.03186194]
[1746636683867,1.31561384,600.68,599.05,3.03186194]
[1746636684064,0.30616955,600.67,599.05,3.03186194]
[1746636684268,1.00944429,600.66,599.05,3.03186194]
[1746636684467,0.30616955,600.65,599.05,3.03186194]
[1746636684665,1.00944429,600.64,599.05,3.03186194]
[1746636684869,0.30616955,600.63,599.05,3.03186194]
[1746636685067,1.00944429,600.62,599.05,3.03186194]
[1746636685371,0.30616955,600.61,599.05,3.03186194]
[1746636685773,1.00944429,600.6,599.05,3.03186194]
[1746636685973,0.30616955,600.59,599.05,3.03186194]
[1746636686172,1.31561384,600.59,599.05,3.03186194]
[1746636686371,1.00944429,600.58,599.05,3.03186194]
[1746636686571,1.31561384,600.58,599.05,3.03186194]
[1746636686868,1.31561384,600.57,599.05,3.03186194]
[1746636687073,0.30616955,600.56,599.05,3.03186194]
[1746636687473,1.29950835,600.55,599.05,3.03186194]
[1746636687671,1.00944429,600.54,599.05,3.03186194]
[1746636687871,1.31561384,600.54,599.05,3.03186194]
[1746636688073,0.29006406,600.55,599.05,3.03186194]
[1746636688074,1.31561384,600.53,599.05,3.03186194]
[1746636688574,0.30616955,600.52,599.05,3.03186194]
[1746636688774,1.00944429,600.51,599.05,3.03186194]
[1746636689074,0.30616955,600.5,599.05,3.03186194]
[1746636689575,1.00944429,600.49,599.05,3.03186194]
[1746636690275,0.29006406,600.55,599.05,3.03186194]
[1746636690276,1.00944429,600.48,599.05,3.03186194]
[1746636690571,1.00944429,600.47,599.05,3.03186194]
[1746636690876,1.00944429,600.46,599.05,3.03186194]
[1746636691172,1.00944429,600.45,599.05,3.03186194]
[1746636692377,1.00944429,600.44,599.05,3.03186194]
[1746636692574,1.00944429,600.43,599.05,3.03186194]
[1746636692775,1.00944429,600.42,599.05,3.03186194]
[1746636692980,1.00944429,600.41,599.05,3.03186194]
[1746636693180,1.00944429,600.4,599.05,3.03186194]
[1746636693481,1.00944429,600.39,599.05,3.03186194]
[1746636694281,1.00944429,600.38,599.05,3.03186194]
[1746636694482,1.00944429,600.37,599.05,3.03186194]
[1746636694985,1.00944429,600.36,599.05,3.03186194]
[1746636695382,1.00944429,600.35,599.05,3.03186194]
[1746636695981,1.00944429,600.34,599.05,3.03186194]
[1746636696785,1.00944429,600.33,599.05,3.03186194]
[1746636697182,1.00944429,600.32,599.05,3.03186194]
[1746636697883,1.00944429,600.31,599.05,3.03186194]
[1746636698384,1.00944429,600.3,599.05,3.03186194]
[1746636698583,1.00944429,600.29,599.05,3.03186194]
[1746636699084,1.00944429,600.28,599.05,3.03186194]
[1746636699984,1.00944429,600.27,599.05,3.03186194]
[1746636700688,1.00944429,600.26,599.05,3.03186194]
[1746636701087,1.00944429,600.25,599.05,3.03186194]
[1746636701482,1.00944429,600.24,599.05,3.03186194]
[1746636701783,1.00944429,600.23,599.05,3.03186194]
[1746636702184,1.00944429,600.22,599.05,3.03186194]
[1746636702782,1.00944429,600.21,599.05,3.03186194]
[1746636702986,1.00944429,600.2,599.05,3.03186194]
[1746636703286,1.00944429,600.19,599.05,3.03186194]
[1746636703688,1.00944429,600.18,599.05,3.03186194]
[1746636704082,1.00944429,600.17,599.05,3.03186194]
[1746636704382,1.01171754,600.16,599.05,3.03186194]
[1746636704686,1.01171754,600.15,599.05,3.03186194]
[1746636704882,1.01171754,600.14,599.05,3.03186194]
[1746636705487,1.01171754,600.13,599.05,3.03186194]
[1746636705789,1.01171754,600.12,599.05,3.03186194]
[1746636706188,1.01171754,600.11,599.05,3.03186194]
[1746636706388,0.29008703,600.6,599.05,3.03186194]
[1746636706688,1.01175047,600.59,599.05,3.03186194]
[1746636706888,1.01175047,600.58,599.05,3.03186194]
[1746636707391,1.01175047,600.57,599.05,3.03186194]
[1746636707584,1.01175047,600.56,599.05,3.03186194]
[1746636707885,1.01175047,600.55,599.05,3.03186194]
[1746636708388,1.01175047,600.54,599.05,3.03186194]
[1746636709090,1.01175047,600.53,599.05,3.03186194]
[1746636709689,1.01175047,600.52,599.05,3.03186194]
[1746636710190,1.01175047,600.51,599.05,3.03186194]
[1746636710683,1.01175047,600.5,599.05,3.03186194]
[1746636711288,1.01175047,600.49,599.05,3.03186194]
[1746636712090,1.01175047,600.48,599.05,3.03186194]
[1746636712491,1.01175047,600.47,599.05,3.03186194]
[1746636712888,1.01175047,600.46,599.05,3.03186194]
[1746636713192,1.01175047,600.45,599.05,3.03186194]
[1746636713795,1.01175047,600.44,599.05,3.03186194]
[1746636714396,1.01175047,600.43,599.05,3.03186194]
[1746636714794,0.33284516,600.88,599.05,3.03186194]
[1746636714795,1.01175047,600.42,599.05,3.03186194]
[1746636715096,1.01175047,600.41,599.05,3.03186194]
[1746636715497,1.01175047,600.4,599.05,3.03186194]
[1746636715895,1.01175047,600.39,599.05,3.03186194]
[1746636716099,1.01175047,600.38,599.05,3.03186194]
[1746636716301,1.01175047,600.37,599.05,3.03186194]
[1746636716494,0.29005076,600.6,599.05,3.03186194]
[1746636716495,1.01175047,600.36,599.07,1.06042662]
[1746636717000,1.01175047,600.35,599.09,0.33383965]
[1746636717700,1.01175047,600.34,599.09,0.33383965]
[1746636718401,1.01175047,600.33,599.09,0.33383965]
[1746636718798,1.01175047,600.32,599.13,1.06042662]
[1746636719003,1.01175047,600.32,599.15,0.33380622]
[1746636719399,1.01175047,600.32,599.15,1.07280622]
[1746636719699,1.01175047,600.31,599.15,1.07280622]
[1746636720005,1.01175047,600.3,599.15,1.90880622]
[1746636720303,1.01175047,600.3,599.15,2.58080622]
[1746636720600,1.01175047,600.29,599.15,2.58080622]
[1746636720803,1.01175047,600.29,599.15,3.30380622]
[1746636721202,1.01175047,600.28,599.15,3.30380622]
[1746636721706,1.01175047,600.27,599.15,3.30380622]
[1746636722104,1.01175047,600.26,599.15,3.30380622]
[1746636722803,0.29005559,600.6,599.15,3.30380622]
[1746636722804,1.0121504,600.25,599.15,3.30380622]
[1746636723603,1.0121504,600.24,599.15,3.30380622]
[1746636724205,1.0121504,600.23,599.15,3.30380622]
[1746636724805,1.0121504,600.22,599.15,3.30380622]
[1746636725302,1.0121504,600.21,599.15,3.30380622]
[1746636725509,1.0121504,600.2,599.15,3.30380622]
[1746636725706,1.0121504,600.19,599.15,3.30380622]
[1746636725904,1.0121504,600.18,599.15,3.30380622]
[1746636726406,1.0121504,600.17,599.15,3.30380622]
[1746636726605,1.0121504,600.16,599.15,3.30380622]
[1746636726801,1.0121504,600.15,599.15,3.30380622]
[1746636727308,1.0121504,600.14,599.15,3.30380622]
[1746636727707,1.0121504,600.58,599.15,3.30380622]
[1746636728207,1.0121504,600.57,599.15,3.30380622]
[1746636728903,1.0121504,600.56,599.15,3.30380622]
[1746636729808,1.0121504,600.55,599.15,3.30380622]
[1746636730207,1.0121504,600.54,599.15,3.30380622]
[1746636730608,1.0121504,600.53,599.15,3.30380622]
[1746636731109,1.0121504,600.52,599.15,3.30380622]
[1746636731702,1.0121504,600.51,599.15,3.30380622]
[1746636732111,1.0121504,600.5,599.15,3.30380622]
[1746636732709,1.0121504,600.49,599.15,3.30380622]
[1746636733509,1.0121504,600.48,599.15,3.30380622]
[1746636734209,1.0121504,600.47,599.15,3.30380622]
[1746636734505,1.0121504,600.46,599.15,3.30380622]
[1746636734907,1.0121504,600.45,599.15,3.30380622]
[1746636735407,1.0121504,600.44,599.15,3.30380622]
[1746636735807,1.0121504,600.43,599.15,3.30380622]
[1746636736009,1.0121504,600.42,599.15,3.30380622]
[1746636736407,1.0121504,600.41,599.15,3.30380622]
[1746636736811,1.0121504,600.4,599.15,3.30380622]
[1746636737511,1.0121504,600.39,599.15,3.30380622]
[1746636737912,1.0121504,600.38,599.15,3.30380622]
[1746636738413,1.0121504,600.37,599.15,3.30380622]
[1746636738910,1.0121504,600.36,599.15,3.30380622]
[1746636739414,1.0121504,600.35,599.15,3.30380622]
[1746636740115,1.0121504,600.34,599.15,3.30380622]
[1746636740711,1.0121504,600.33,599.15,3.30380622]
[1746636741417,1.0121504,600.32,599.15,3.30380622]
[1746636742016,1.0121504,600.31,599.15,3.30380622]
[1746636742614,1.0121504,600.3,599.15,3.30380622]
[1746636743018,1.0121504,600.29,599.15,3.30380622]
[1746636743519,1.0121504,600.28,599.15,3.30380622]
[1746636744021,1.0121504,600.27,599.15,3.30380622]
[1746636744421,1.0121504,600.26,599.15,3.30380622]
[1746636745121,1.0121504,600.25,599.15,3.30380622]
[1746636745620,1.0121504,600.24,599.15,3.30380622]
[1746636746621,1.0121504,600.23,599.15,3.30380622]
[1746636747016,1.0121504,600.22,599.15,3.30380622]
[1746636747619,1.0121504,600.21,599.15,3.30380622]
[1746636748221,1.0121504,600.2,599.15,3.30380622]
[1746636748917,1.0121504,600.19,599.15,3.30380622]
[1746636749321,1.0121504,600.18,599.15,3.30380622]
[1746636749924,1.0121504,600.17,599.15,3.30380622]
[1746636750519,0.33284516,600.88,599.15,3.30380622]
[1746636750520,1.0121504,600.16,599.15,3.30380622]
[1746636750717,1.0121504,600.15,599.15,3.30380622]
[1746636751119,1.0121504,600.14,599.15,3.30380622]
[1746636751424,1.0121504,600.13,599.15,3.30380622]
[1746636751626,1.0121504,600.12,599.15,3.30380622]
[1746636752224,1.0121504,600.11,599.15,3.30380622]
[1746636752425,1.0121504,600.1,599.15,3.30380622]
[1746636752927,1.0121504,600.09,599.15,3.30380622]
[1746636753427,1.0121504,600.08,599.15,3.30380622]
[1746636753831,1.0121504,600.07,599.15,3.30380622]
[1746636754024,1.0121504,600.06,599.15,3.30380622]
[1746636754427,1.0121504,600.05,599.15,3.30380622]
[1746636754830,0.29009791,600.5,599.15,3.30380622]
[1746636755229,1.01038384,600.49,599.15,3.30380622]
[1746636755624,1.01038384,600.48,599.15,3.30380622]
[1746636755925,1.01038384,600.47,599.15,3.30380622]
[1746636756527,1.01038384,600.46,599.15,3.30380622]
[1746636757429,1.01038384,600.45,599.15,3.30380622]
[1746636757830,1.01038384,600.44,599.15,3.30380622]
[1746636758231,1.01038384,600.43,599.15,3.30380622]
[1746636758530,1.01038384,600.42,599.15,3.30380622]
[1746636759031,1.01038384,600.41,599.15,3.30380622]
[1746636760028,1.01038384,600.4,599.15,3.30380622]
[1746636760232,1.01038384,600.39,599.15,3.30380622]
[1746636761133,1.01038384,600.38,599.15,3.30380622]
[1746636761534,1.01038384,600.37,599.15,3.30380622]
[1746636761935,1.01038384,600.36,599.15,3.30380622]
[1746636762434,1.01038384,600.35,599.15,3.30380622]
[1746636763034,1.01038384,600.34,599.15,3.30380622]
[1746636763335,1.01038384,600.33,599.15,3.30380622]
[1746636764034,1.01038384,600.32,599.15,3.30380622]
[1746636764235,1.01038384,600.31,599.15,3.30380622]
[1746636764737,1.01038384,600.3,599.15,3.30380622]
[1746636765038,1.01038384,600.29,599.15,3.30380622]
[1746636765536,0.33284516,600.88,599.17,1.06042662]
[1746636765537,1.01038384,600.28,599.17,1.06042662]
[1746636765738,1.01038384,600.27,599.19,0.33378394]
[1746636766031,1.01038384,600.26,599.19,0.33378394]
[1746636766538,1.01038384,600.25,599.19,0.33378394]
[1746636767134,1.01038384,600.24,599.19,0.33378394]
[1746636767437,1.01038384,600.23,599.19,0.33378394]
[1746636767938,1.01038384,600.22,599.19,0.33378394]
[1746636768438,1.01038384,600.21,599.2,0.753]
[1746636768635,1.01038384,600.21,599.22,0.33376723]
[1746636768939,1.01038384,600.2,599.22,0.33376723]
[1746636769338,1.01038384,600.19,599.22,0.33376723]
[1746636769738,1.01038384,600.19,599.23,0.587]
[1746636770039,1.01038384,600.18,599.25,0.33375052]
[1746636770639,1.01038384,600.17,599.25,0.33375052]
[1746636771441,1.01038384,600.16,599.25,0.33375052]
[1746636771640,1.01038384,600.15,599.25,0.33375052]
[1746636772142,1.01038384,600.14,599.25,0.33375052]
[1746636772540,1.01038384,600.13,599.25,0.33375052]
[1746636773241,1.01038384,600.12,599.25,0.33375052]
[1746636773937,1.01038384,600.11,599.25,0.33375052]
[1746636774343,1.01038384,600.1,599.25,0.33375052]
[1746636774938,1.01038384,600.09,599.26,0.746]
[1746636775337,0.29008582,600.5,599.26,0.746]
[1746636775744,0.29008582,600.5,599.28,0.33373381]
[1746636775938,1.01091424,600.49,599.28,0.33373381]
[1746636776542,1.01091424,600.48,599.28,0.33373381]
[1746636776842,1.01091424,600.47,599.28,0.33373381]
[1746636777236,1.01091424,600.46,599.28,0.33373381]
[1746636777538,1.01091424,600.45,599.28,0.33373381]
[1746636778043,1.01091424,600.44,599.28,0.33373381]
[1746636778538,1.01091424,600.43,599.28,0.33373381]
[1746636779345,1.01091424,600.42,599.28,0.33373381]
[1746636779645,1.01091424,600.41,599.28,0.33373381]
[1746636780246,0.33284516,600.88,599.28,0.33373381]
[1746636780247,1.01091424,600.4,599.28,0.33373381]
[1746636781043,1.01091424,600.39,599.28,0.33373381]
[1746636781247,1.01091424,600.38,599.28,0.33373381]
[1746636781452,1.01133208,600.37,599.28,0.33373381]
[1746636782452,1.01133208,600.36,599.28,0.33373381]
[1746636782648,1.01133208,600.35,599.28,0.33373381]
[1746636783153,1.01133208,600.34,599.28,0.33373381]
[1746636783353,0.33284516,600.88,599.28,0.33373381]
[1746636783354,1.01133208,600.33,599.28,0.33373381]
[1746636783855,1.01133208,600.32,599.28,0.33373381]
[1746636784050,1.01133208,600.31,599.28,0.33373381]
[1746636784257,0.29005439,600.5,599.28,0.33373381]
[1746636784258,1.01133208,600.3,599.28,0.33373381]
[1746636784757,1.01133208,600.29,599.28,0.33373381]
[1746636785355,1.01133208,600.28,599.28,0.33373381]
[1746636786259,1.01133208,600.27,599.28,0.33373381]
[1746636786860,1.01133208,600.26,599.28,0.33373381]
[1746636787753,1.01133208,600.25,599.28,0.33373381]
[1746636788057,1.01133208,600.24,599.28,0.33373381]
[1746636788861,1.01133208,600.23,599.28,0.33373381]
[1746636789560,1.01133208,600.22,599.28,0.33373381]
[1746636790261,1.01133208,600.21,599.28,0.33373381]
[1746636790457,1.01133208,600.2,599.28,0.33373381]
[1746636790959,1.01133208,600.19,599.28,0.33373381]
[1746636791564,1.01133208,600.18,599.28,0.33373381]
[1746636792058,1.01133208,600.17,599.28,0.33373381]
[1746636792962,1.01133208,600.16,599.28,0.33373381]
[1746636793159,1.01133208,600.15,599.28,0.33373381]
[1746636793557,1.01133208,600.14,599.28,0.33373381]
[1746636793863,1.01133208,600.13,599.28,0.33373381]
[1746636794263,1.01133208,600.12,599.28,0.33373381]
[1746636794770,1.01133208,600.11,599.28,0.33373381]
[1746636795366,1.01133208,600.1,599.28,0.33373381]
[1746636795866,1.01133208,600.09,599.28,0.33373381]
[1746636796164,1.01133208,600.08,599.28,0.33373381]
[1746636796766,1.01133208,600.07,599.28,0.33373381]
[1746636797066,1.01133208,600.06,599.28,0.33373381]
[1746636797466,1.01133208,600.05,599.28,1.02673381]
[1746636797861,1.01133208,600.04,599.28,1.02673381]
[1746636798666,1.01133208,600.03,599.28,1.62373381]
[1746636798962,1.01133208,600.02,599.28,1.62373381]
[1746636799467,1.01133208,600.01,599.28,1.62373381]
[1746636799966,0.29008824,600.5,599.28,1.62373381]
[1746636800466,1.01208551,600.49,599.28,1.62373381]
[1746636800862,1.01208551,600.48,599.28,1.62373381]
[1746636801266,1.01208551,600.47,599.28,1.62373381]
[1746636801467,1.01208551,600.47,599.28,2.38373381]
[1746636801863,1.01208551,600.46,599.28,2.38373381]
[1746636802266,1.01208551,600.45,599.28,2.38373381]
[1746636802463,1.01208551,600.44,599.28,2.38373381]
[1746636802770,1.01208551,600.43,599.28,2.38373381]
[1746636803468,1.01208551,600.42,599.28,2.38373381]
[1746636803771,1.01208551,600.41,599.28,2.38373381]
[1746636804673,1.01208551,600.4,599.28,2.38373381]
[1746636805273,1.01208551,600.39,599.28,2.38373381]
[1746636805473,1.01208551,600.38,599.28,2.38373381]
[1746636806274,1.01208551,600.37,599.28,2.38373381]
[1746636806468,1.01208551,600.36,599.28,2.38373381]
[1746636806974,1.01208551,600.35,599.28,2.38373381]
[1746636807673,1.01208551,600.34,599.28,2.38373381]
[1746636808375,1.01208551,600.33,599.28,2.38373381]
[1746636808975,1.01208551,600.32,599.28,2.38373381]
[1746636809875,1.01208551,600.31,599.28,2.38373381]
[1746636810475,1.01208551,600.3,599.28,2.38373381]
[1746636810776,1.01208551,600.29,599.28,2.38373381]
[1746636811177,1.01208551,600.29,599.28,3.25973381]
[1746636811376,1.01208551,600.28,599.28,3.25973381]
[1746636811877,1.01208551,600.27,599.28,3.25973381]
[1746636812178,1.01208551,600.26,599.28,3.25973381]
[1746636812680,1.01208551,600.25,599.28,3.25973381]
[1746636813079,1.01208551,600.24,599.28,3.25973381]
[1746636813479,1.01208551,600.23,599.28,3.25973381]
[1746636813880,1.01208551,600.22,599.28,3.25973381]
[1746636814075,1.01208551,600.21,599.28,3.25973381]
[1746636814279,1.01208551,600.2,599.28,3.25973381]
[1746636814682,1.01208551,600.19,599.28,3.25973381]
[1746636815081,1.01208551,600.18,599.28,3.25973381]
[1746636815483,1.01208551,600.17,599.28,3.25973381]
[1746636815778,1.01208551,600.16,599.28,3.25973381]
[1746636816282,1.01208551,600.15,599.28,3.25973381]
[1746636816883,1.01208551,600.14,599.28,3.25973381]
[1746636817483,1.01208551,600.13,599.28,3.25973381]
[1746636817985,0.29004955,600.56,599.28,3.25973381]
[1746636818679,1.01049586,600.55,599.28,3.25973381]
[1746636818983,1.01049586,600.54,599.28,3.25973381]
[1746636819385,1.01049586,600.53,599.28,3.25973381]
[1746636819784,1.01049586,600.52,599.28,3.25973381]
[1746636820585,0.29001329,600.56,599.28,3.25973381]
[1746636820586,1.01049586,600.51,599.28,3.25973381]
[1746636820986,1.01049586,600.5,599.28,3.25973381]
[1746636821486,1.01049586,600.49,599.28,3.25973381]
[1746636822288,1.01049586,600.48,599.28,3.25973381]
[1746636822686,1.01049586,600.47,599.28,3.25973381]
[1746636822886,1.01049586,600.46,599.28,3.25973381]
[1746636823287,1.01049586,600.45,599.28,3.25973381]
[1746636823883,1.01049586,600.44,599.28,3.25973381]
[1746636824188,1.01049586,600.43,599.28,3.25973381]
[1746636824789,1.01049586,600.42,599.28,3.25973381]
[1746636825089,1.01049586,600.41,599.28,3.25973381]
[1746636825885,1.01049586,600.4,599.28,3.25973381]
[1746636826088,1.01049586,600.39,599.28,3.25973381]
[1746636826284,1.01049586,600.38,599.28,3.25973381]
[1746636826489,1.01049586,600.37,599.28,3.25973381]
[1746636827491,1.01049586,600.36,599.28,3.25973381]
[1746636828189,1.01049586,600.35,599.28,3.25973381]
[1746636828492,1.01049586,600.34,599.28,3.25973381]
[1746636828989,1.01049586,600.33,599.28,3.25973381]
[1746636829390,1.01049586,600.32,599.28,3.25973381]
[1746636829591,1.01049586,600.31,599.28,3.25973381]
[1746636829993,1.01049586,600.3,599.28,3.25973381]
[1746636830489,1.01049586,600.29,599.28,3.25973381]
[1746636830897,1.01049586,600.28,599.28,3.25973381]
[1746636831793,1.01049586,600.27,599.28,3.25973381]
[1746636832090,1.01049586,600.26,599.28,3.25973381]
[1746636832396,1.01049586,600.25,599.28,3.25973381]
[1746636832896,1.01049586,600.24,599.28,3.25973381]
[1746636833495,1.01049586,600.23,599.28,3.25973381]
[1746636833794,1.01049586,600.22,599.28,3.25973381]
[1746636834090,1.01049586,600.21,599.28,3.25973381]
[1746636834694,1.01049586,600.2,599.28,3.25973381]
[1746636834997,1.01049586,600.19,599.28,3.25973381]
[1746636835492,1.01049586,600.18,599.28,3.25973381]
[1746636836101,1.01049586,600.17,599.28,3.25973381]
[1746636836597,1.01049586,600.16,599.28,3.25973381]
[1746636837797,1.01049586,600.15,599.28,3.25973381]
[1746636838003,0.33284516,600.88,599.28,3.25973381]
[1746636838498,1.31584559,600.87,599.28,3.25973381]
[1746636838698,1.00973672,600.86,599.28,3.25973381]
[1746636838899,1.31584559,600.86,599.28,3.25973381]
[1746636839300,0.30610887,600.85,599.28,3.25973381]
[1746636839498,1.31584559,600.85,599.28,3.25973381]
[1746636839999,1.31584559,600.84,599.28,3.25973381]
[1746636840500,1.31584559,600.83,599.28,3.25973381]
[1746636840799,0.30610887,600.82,599.28,3.25973381]
[1746636841200,1.00973672,600.81,599.28,3.25973381]
[1746636841601,1.29970289,600.81,599.28,3.25973381]
[1746636841799,1.31584559,600.8,599.28,3.25973381]
[1746636842105,0.30610887,600.79,599.28,3.25973381]
[1746636842304,1.00973672,600.78,599.28,3.25973381]
[1746636842800,0.30610887,600.77,599.28,3.25973381]
[1746636843005,1.31584559,600.77,599.28,3.25973381]
[1746636843206,1.00973672,600.76,599.28,3.25973381]
[1746636843505,0.30610887,600.75,599.28,3.25973381]
[1746636843706,1.60582022,600.75,599.28,3.25973381]
[1746636844002,1.00973672,600.74,599.28,3.25973381]
[1746636844508,1.31581892,600.73,599.28,3.25973381]
[1746636844709,0.3060822,600.72,599.28,3.25973381]
[1746636844908,1.31581892,600.72,599.28,3.25973381]
[1746636845207,1.00973672,600.71,599.28,3.25973381]
[1746636845402,1.00973672,600.7,599.28,3.25973381]
[1746636845607,1.00973672,600.69,599.28,3.25973381]
[1746636846009,1.00973672,600.68,599.28,3.25973381]
[1746636846310,1.00973672,600.67,599.28,3.25973381]
[1746636846709,1.00973672,600.66,599.28,3.25973381]
[1746636847310,1.00973672,600.65,599.28,3.25973381]
[1746636847505,1.00973672,600.64,599.28,3.25973381]
[1746636847711,1.00973672,600.63,599.28,3.25973381]
[1746636848212,1.00973672,600.62,599.28,3.25973381]
[1746636848706,1.00973672,600.61,599.28,3.25973381]
[1746636849012,1.00973672,600.6,599.28,3.25973381]
[1746636849811,1.00973672,600.59,599.28,3.25973381]
[1746636850410,1.00973672,600.58,599.28,3.25973381]
[1746636850913,1.00973672,600.57,599.28,3.25973381]
[1746636851515,1.00973672,600.56,599.28,3.25973381]
[1746636851813,1.00973672,600.55,599.28,3.25973381]
[1746636852011,1.00973672,600.54,599.28,3.25973381]
[1746636852708,1.00973672,600.53,599.28,3.25973381]
[1746636853112,1.00973672,600.52,599.28,3.25973381]
[1746636853914,1.00973672,600.51,599.28,3.25973381]
[1746636854314,1.00973672,600.5,599.28,3.25973381]
[1746636854715,1.00973672,600.49,599.28,3.25973381]
[1746636855215,1.00973672,600.48,599.28,3.25973381]
[1746636855914,1.00973672,600.47,599.28,3.25973381]
[1746636856412,1.00973672,600.46,599.28,3.25973381]
[1746636856710,1.00973672,600.45,599.28,3.25973381]
[1746636856916,1.00973672,600.44,599.28,3.25973381]
[1746636857316,1.00973672,600.43,599.28,3.25973381]
[1746636858111,1.00973672,600.42,599.28,3.25973381]
[1746636858514,0.33284516,600.88,599.28,3.25973381]
[1746636858515,1.00973672,600.41,599.28,3.25973381]
[1746636858813,1.00973672,600.4,599.28,3.25973381]
[1746636859720,1.00973672,600.39,599.28,3.25973381]
[1746636860017,1.00973672,600.38,599.28,3.25973381]
[1746636860517,1.00973672,600.37,599.28,3.25973381]
[1746636861318,1.00973672,600.36,599.28,3.25973381]
[1746636861613,1.00973672,600.35,599.28,3.25973381]
[1746636862322,1.00973672,600.34,599.28,3.25973381]
[1746636862714,1.00973672,600.33,599.28,3.25973381]
[1746636863213,1.00973672,600.32,599.28,3.25973381]
[1746636863718,1.00973672,600.31,599.28,3.25973381]
[1746636864215,1.00973672,600.3,599.28,3.25973381]
[1746636864819,1.00973672,600.29,599.28,3.25973381]
[1746636865220,1.00973672,600.28,599.28,3.25973381]
[1746636865715,1.00973672,600.27,599.28,3.25973381]
[1746636866217,1.00973672,600.26,599.28,3.25973381]
[1746636866714,1.00973672,600.25,599.28,3.25973381]
[1746636867328,1.00973672,600.24,599.28,3.25973381]
[1746636868022,1.00973672,600.23,599.28,3.25973381]
[1746636868623,0.29001933,600.68,599.28,3.25973381]
[1746636869023,1.01060653,600.67,599.28,3.25973381]
[1746636869325,1.01060653,600.66,599.28,3.25973381]
[1746636870024,1.01060653,600.65,599.28,3.25973381]
[1746636870718,1.01060653,600.64,599.28,3.25973381]
[1746636871025,1.01060653,600.63,599.28,3.25973381]
[1746636871525,1.01060653,600.62,599.28,3.25973381]
[1746636872126,1.01060653,600.61,599.28,3.25973381]
[1746636872626,1.01060653,600.6,599.28,3.25973381]
[1746636873026,1.01060653,600.59,599.28,3.25973381]